Workbook

Sheet Registro
A1: TITULO | B1: ESTUDIO DE IMPACTO AMBIENTAL: PROCEDIMIENTO Y HERRAMIENTAS
A3: AUTORES | B3: ROBERTO PECHE GONZALEZ
B4: DOLORES ENCINAS MALAGON
B5: ZURIÑE GOMEZ DE BALUGERA LOPEZ DE ALDA
B6: MARIA ARRITOKIETA ORTUZAR IRAGORRI
A8: ISBN: | B8: 978-84-613-9696-2

Sheet 250
A1: nº de indicador: | B1: 250 | C1: función de transformación: | D1: CA= -2,78E-02*I^2 + 3,33E-01I | E1: 0<I<6
A2: Indicador: | B2: Indicador semicualitativo de variación de la calidad de vida
A3: fórmula del indicador | B3: no hay
A4: unidad del indicador:
A5: rango de valores del indicador: | B5: 0 - 6 | C5: valor del indicador | D5: 3
A6: Tipo de indicador | B6: 3 (T=0,50) | C6: calidad ambiental | D6: =IF(D5<0,"valor del indicador fuera de rango",IF(D5<=6,-0.0278*(D5^2)+(0.333*D5),"valor del indicador fuera rango")) -> 0.749
A7: valor del indicador | B7: calidad ambiental | C7: representación de la función de transformación
A8: 0.0 | B8: =-0.0278*A8^2 + 0.333*A8 -> 0.000
A9: 0.5 | B9: =-0.0278*A9^2 + 0.333*A9 -> 0.160
A10: 1.0 | B10: 0.305
A11: 1.5 | B11: 0.437
A12: 2.0 | B12: 0.555
A13: 2.5 | B13: 0.659
A14: 3.0 | B14: 0.749
A15: 3.5 | B15: 0.825
A16: 4.0 | B16: 0.887
A17: 4.5 | B17: 0.936
A18: 4.8 | B18: 0.958
A19: 5.0 | B19: =-0.0278*A19^2+0.333*A19 -> 0.970
A20: 5.5 | B20: =-0.0278*A20^2+0.333*A20 -> 0.991
A21: =+A20+0.1 -> 5.6 | B21: 0.993
A22: =+A21+0.1 -> 5.7 | B22: 0.995
A23: =+A22+0.1 -> 5.8 | B23: 0.996
A24: =+A23+0.1 -> 5.9 | B24: 0.997
A25: 6.0 | B25: 0.997

Sheet 251
A1: nº de indicador: | B1: 251 | C1: función de transformación: | D1: CA= + 5,71E-02I^2 - 5,71E-02I + 6,94E -18 | E1: 1<I<3,5
A2: Indicador: | B2: Indicador semicualitativo de variación de las interacciones sociales | D2: CA=-8E-02I^2 + 9,6E - 01I - 1,880 | E2: 3,5<I<6
A3: fórmula del indicador
A4: unidad del indicador:
A5: rango de valores del indicador: | B5: 2007-06-01 | C5: valor del indicador | D5: 3
A6: Tipo de indicador | B6: 3 (T=0,50) | C6: calidad ambiental | D6: =IF(D5<1,"valor del indicador fuera de rango",IF(D5<=3.5,0.0571*(D5^2)-(0.0571*D5)+0,IF(D5<=6,(-0.08*(D5^2))+(0.96*D5)-1.88,"valor del indicador fuera rango"))) -> 0.343
A7: valor del indicador | B7: calidad ambiental | C7: representación de la función de transformación
A8: 1 | B8: =0.0571*A8^2 - 0.0571*A8 + 6.94E-18 -> 0.000
A9: =+A8+0.3 -> 1.3 | B9: =0.0571*A9^2 - 0.0571*A9 -> 0.022
A10: 1.6 | B10: 0.055
A11: 1.9 | B11: 0.098
A12: 2.2 | B12: 0.151
A13: 2.5 | B13: 0.214
A14: 2.8 | B14: 0.288
A15: 3.1 | B15: 0.372
A16: 3.4 | B16: 0.466
A17: 3.7 | B17: =-0.08*A17^2+0.96*A17-1.88 -> 0.577
A18: 4 | B18: 0.680
A19: 4.3 | B19: 0.769
A20: 4.6 | B20: 0.843
A21: 4.9 | B21: 0.903
A22: 5.2 | B22: 0.949
A23: 5.5 | B23: 0.980
A24: 5.8 | B24: 0.997
A25: 6 | B25: 1.000

Sheet 252-253
A1: nº de indicador: | B1: 252 | C1: función de transformación: | D1: CA= 1E-04I^2 - 2E- 02I + 1 | E1: 0 < I < 100
A2: Indicador: | B2: % de pobalación en contra del proyecto
A3: fórmula del indicador
A4: unidad del indicador:
A5: rango de valores del indicador: | B5: 0 - 100 | C5: valor del indicador | D5: 70
A6: Tipo de indicador | B6: 2 (T=0,25) | C6: calidad ambiental | D6: =IF(D5<0,"valor del indicador fuera de rango",IF(D5<=100,0.0001*(D5^2)-(0.02*D5)+1,"valor del indicador fuera rango")) -> 0.090
A7: valor del indicador | B7: calidad ambiental | C7: representación de la función de transformación
A8: 0 | B8: =0.0001*A8^2-0.02*A8+1 -> 1.000
A9: 5 | B9: 0.903
A10: 10 | B10: 0.810
A11: 15 | B11: 0.723
A12: 20 | B12: 0.640
A13: 25 | B13: 0.563
A14: 30 | B14: 0.490
A15: 35 | B15: 0.423
A16: 40 | B16: 0.360
A17: 45 | B17: 0.303
A18: 50 | B18: 0.250
A19: 55 | B19: 0.203
A20: 60 | B20: 0.160
A21: 65 | B21: 0.123
A22: 70 | B22: 0.090
A23: 80 | B23: 0.040
A24: 90 | B24: 0.010
A25: 100 | B25: 0.000
A27: nº de indicador: | B27: 253 | C27: función de transformación: | D27: CA=1E-04I^2 - 2E-02I + 1 | E27: 0<I<100
A28: Indicador: | B28: Número de alegaciones presentadas
A29: fórmula del indicador
A30: unidad del indicador:
A31: rango de valores del indicador: | B31: 0 - 100 | C31: valor del indicador | D31: 10
A32: Tipo de indicador | B32: 2 (T=0,25) | C32: calidad ambiental | D32: =IF(D31<0,"valor del indicador fuera de rango",IF(D31<=100,0.0001*(D31^2)-(0.02*D31)+1,"valor del indicador fuera rango")) -> 0.810
A33: valor del indicador | B33: calidad ambiental | C33: representación de la función de transformación
A34: 0 | B34: =0.0001*A34^2-0.02*A34+1 -> 1.00
A35: 5 | B35: 0.90
A36: 10 | B36: 0.81
A37: 15 | B37: 0.72
A38: 20 | B38: 0.64
A39: 25 | B39: 0.56
A40: 30 | B40: 0.49
A41: 35 | B41: 0.42
A42: 40 | B42: 0.36
A43: 45 | B43: 0.30
A44: 50 | B44: 0.25
A45: 55 | B45: 0.20
A46: 60 | B46: 0.16
A47: 65 | B47: 0.12
A48: 70 | B48: 0.09
A49: 75 | B49: 0.06
A50: 78 | B50: 0.05
A51: 80 | B51: 0.04
A52: 85 | B52: 0.02
A53: 100 | B53: 0.00

Sheet 254
A1: nº de indicador: | B1: 254 | C1: función de transformación: | D1: CA=-2,5E-03x+1 | E1: 0<x<100
A2: Indicador: | B2: Variación del riesgo | D2: CA=-7,5E-03x+1,500 | E2: 100<x<200
A3: fórmula del indicador
A4: unidad del indicador:
A5: rango de valores del indicador: | B5: 0 - 200 | C5: valor del indicador | D5: 150
A6: Tipo de indicador | B6: 2 (T=0,25) | C6: calidad ambiental | D6: =IF(D5<0,"valor del indicador fuera de rango",IF(D5<=100,-0.0025*D5+1,IF(D5<200,-0.0075*D5+1.5,IF(D5>200,"valor del indicador fuera rango")))) -> 0.375
A7: valor del indicador | B7: calidad ambiental | C7: representación de la función de transformación
A8: 0 | B8: =-0.0025*A8+1 -> 1.000
A9: =+A8+10 -> 10 | B9: 0.975
A10: 20 | B10: 0.950
A11: 30 | B11: 0.925
A12: 40 | B12: 0.900
A13: 50 | B13: 0.875
A14: 60 | B14: 0.850
A15: 70 | B15: 0.825
A16: 80 | B16: 0.800
A17: 90 | B17: 0.775
A18: 100 | B18: 0.750
A19: 110 | B19: =-0.0075*A19+1.5 -> 0.675
A20: 120 | B20: 0.600
A21: 130 | B21: 0.525
A22: 140 | B22: 0.450
A23: 150 | B23: 0.375
A24: 160 | B24: 0.300
A25: 170 | B25: 0.225
A26: 180 | B26: 0.150
A27: 190 | B27: 0.075
A28: 200 | B28: 0.000

Sheet 255
A1: nº de indicador: | B1: 255 | C1: función de transformación: | D1: CA=-2,5E-03x+1 | E1: 0<x<100
A2: Indicador: | B2: Grado de quebrantamientos e interés | D2: CA=-7,5E-03x+1,500 | E2: 100<x<200
A3: fórmula del indicador
A4: unidad del indicador:
A5: rango de valores del indicador: | B5: 0 - 5 | C5: valor del indicador | D5: 150
A6: Tipo de indicador | B6: 3 (T=0,50) | C6: calidad ambiental | D6: =IF(D5<0,"valor del indicador fuera de rango",IF(D5<=100,-0.0025*D5+1,IF(D5<200,-0.0075*D5+1.5,IF(D5>200,"valor del indicador fuera rango")))) -> 0.375
A7: valor del indicador | B7: calidad ambiental | C7: representación de la función de transformación
A8: 0.0 | B8: =0.2*A8 -> 0.000
A9: 0.4 | B9: 0.080
A10: 0.6 | B10: 0.120
A11: =+A10+0.2 -> 0.8 | B11: 0.160
A12: 1.0 | B12: 0.200
A13: 1.4 | B13: 0.280
A14: 1.6 | B14: 0.320
A15: 1.8 | B15: 0.360
A16: 2.0 | B16: 0.400
A17: 2.4 | B17: 0.480
A18: 2.6 | B18: 0.520
A19: 2.8 | B19: 0.560
A20: 3.0 | B20: 0.600
A21: 3.4 | B21: 0.680
A22: 3.6 | B22: 0.720
A23: 3.8 | B23: 0.760
A24: 4.0 | B24: 0.800
A25: 4.4 | B25: 0.880
A26: 4.6 | B26: 0.920
A27: 4.8 | B27: 0.960
A28: 5.0 | B28: 1.000
